[Event "Che Chess Festival Blitz 2023"]
[Site "Thiruvananthapuram"]
[Date "2023.11.20"]
[Round "4.1"]
[White "Praggnanandhaa R"]
[Black "Nihal Sarin"]
[Result "1-0"]
[ECO "D02"]
[WhiteElo "2741"]
[BlackElo "2692"]
[Annotator "TA"]
[PlyCount "167"]
[EventDate "2023.11.20"]
[EventType "blitz"]
[EventCountry "IND"]
[SourceTitle "playchess.com"]
[Source "ChessBase"]
[SourceQuality "1"]
[TimeControl "180+2"]

{[%evp 9,167,34,35,37,36,51,60,52,53,36,60,60,50,52,53,49,51,51,51,52,61,54,69,52,61,63,60,52,61,58,62,58,84,46,53,41,45,43,66,40,77,46,56,39,39,40,54,37,43,41,41,27,56,52,52,45,61,50,59,41,58,31,63,65,50,33,58,51,54,55,56,57,57,60,50,57,61,41,57,48,116,117,91,107,122,58,58,0,115,57,58,53,62,58,131,122,227,231,259,256,255,246,253,250,227,238,253,239,247,239,193,196,193,118,114,80,279,242,229,164,148,70,186,161,167,154,143,133,169,160,156,158,135,0,57,0,183,183,183,183,183,176,172,173,173,163,259,64,64,64,64,53,29980,29981,29981,29982,29982,29983,29983,29984]} 1. Nf3 {[%emt 0:00:01][%cal Bg1f3,Bf3h4,Bh4g2,Bg2f4][%mdl 32]} d5 {[%emt 0:00:01]} 2. g3 {[%emt 0:00:03]} Nd7 {[%emt 0:00:03]} 3. d4 {[%emt 0:00:05]} Nb6 {[%emt 0:00:02]} 4. Nbd2 {[%emt 0:00:06]} Bf5 {[%emt 0:00:08]} 5. Nh4 {[%emt 0:00:02]} Bg4 {[%emt 0:00:02]} 6. h3 {[%emt 0:00:01] D02: 1 d4 d5 2 Nf3 sidelines, including 2...Nf6 3 g3 and 2...Nf6 3 Bf4.} Bh5 {[%emt 0:00:00]} 7. Ng2 {[%emt 0:00:01]} e6 {[%emt 0:00:15]} 8. Nf4 {[%emt 0:00:02] White is slightly better.} Bg6 {[%emt 0:00:01]} 9. Bg2 {[%emt 0:00:06] [#]} Nf6 $146 {[%emt 0:00:02]} ({Predecessor:} 9... c6 10. e4 dxe4 11. Nxg6 hxg6 12. Nxe4 Nf6 13. Ng5 Bd6 14. O-O O-O 15. Qe2 Re8 {0-1 Efimenko,Z (2601)-Kovalenko,I (2647) Bundesliga 1920 2019 (14.3)}) 10. Nxg6 {[%emt 0:00:10]} hxg6 {[%emt 0:00:02]} 11. e4 {[%emt 0:00:01]} dxe4 {[%emt 0:00:14]} 12. Nxe4 {[%emt 0:00:02]} Nxe4 {[%emt 0:00:01]} 13. Bxe4 {[%emt 0:00:02]} c6 {[%emt 0:00:00]} 14. c3 {[%emt 0:00:17]} Bd6 {[%emt 0:00:03]} 15. Qe2 {[%emt 0:00:11]} Qc7 {[%emt 0:00:02]} 16. Bd2 {[%emt 0:00:32]} Nd5 {[%emt 0:00:11]} 17. h4 {[%emt 0:00:07]} O-O-O {[%emt 0:00:12]} 18. O-O-O {[%emt 0:00:02]} Nf6 {[%emt 0:00:16]} 19. Bf3 {[%emt 0:00:04]} (19. Bg2 {feels hotter.} Qa5 20. Kb1 Kb8 21. f4) 19... Kb8 {[%emt 0:00:01]} 20. Kb1 {[%emt 0:00:01]} Ka8 {[%emt 0:00:02]} 21. Bg5 {[%emt 0:00:07]} Rhe8 {[%emt 0:00:03]} 22. Qc2 {[%emt 0:00:07]} Be7 {[%emt 0:00:01]} 23. Rhe1 {[%emt 0:00:03]} Nd5 {[%emt 0:00:02]} 24. Bc1 {[%emt 0:00:01]} (24. c4 $5 {[%cal Rc4d5]} Nf6 25. Qa4 $16) 24... Nf6 {[%emt 0:00:07]} 25. Re2 {[%emt 0:00:03]} Rd7 {[%emt 0:00:02]} 26. Bf4 {[%emt 0:00:13]} Qb6 {[%emt 0:00:01]} 27. Qb3 {[%emt 0:00:13]} Qa6 {[%emt 0:00:02]} 28. Ree1 {[%emt 0:00:09]} Red8 {[%emt 0:00:01]} 29. Qc2 {[%emt 0:00:05]} Nd5 {[%emt 0:00:04]} 30. Bc1 {[%emt 0:00:01]} Nb6 {[%emt 0:00:06]} 31. h5 {[%emt 0:00:09]} gxh5 {[%emt 0:00:03]} 32. Bxh5 {[%emt 0:00:01]} g6 {[%emt 0:00:01]} 33. Be2 {[%emt 0:00:01]} Qa5 {[%emt 0:00:01]} 34. Rh1 {[%emt 0:00:01]} Bf6 {[%emt 0:00:43]} 35. Rd3 {[%emt 0:00:14]} Rh8 {[%emt 0:00:16]} 36. Rxh8+ {[%emt 0:00:12]} Bxh8 {[%emt 0:00:01]} 37. Rd1 {[%emt 0:00:02]} Qd5 {[%emt 0:00:03]} 38. c4 {[%emt 0:00:10]} Qf5 {[%emt 0:00:17]} 39. Qxf5 {[%emt 0:00:03]} gxf5 {[%emt 0:00:01]} 40. Be3 {[%emt 0:00:01]} Kb8 {[%emt 0:00:03]} 41. Kc2 {[%emt 0:00:04]} Bf6 {[%emt 0:00:01]} 42. b3 {[%emt 0:00:04]} Nc8 {[%emt 0:00:02]} 43. Bf3 {[%emt 0:00:05]} Ne7 {[%emt 0:00:01]} 44. Bh5 {[%emt 0:00:09]} Nc8 {[%emt 0:00:08]} (44... Ng8 $14) 45. Bf4+ $16 {[%emt 0:00:03]} Ka8 {[%emt 0:00:02]} 46. Be5 {[%emt 0:00:01]} Bd8 {[%emt 0:00:06]} 47. Bf3 {[%emt 0:00:06]} (47. Rh1 $16) 47... Ne7 $14 {[%emt 0:00:10]} 48. Bh5 {[%emt 0:00:01]} (48. Bf4 $14) 48... Nc8 $1 $16 {[%emt 0:00:14]} 49. Kc3 {[%emt 0:00:02]} (49. Rh1 $16) 49... a5 {[%emt 0:00:07]} 50. Rh1 {[%emt 0:00:08]} Ka7 {[%emt 0:00:01]} 51. Bf3 $36 {[%emt 0:00:03][%mdl 2048] White has good play.} f6 {[%emt 0:00:01]} (51... Ne7 $14) 52. Bf4 {[%emt 0:00:01]} Bb6 {[%emt 0:00:01]} (52... Ne7 $16 53. Re1 Ng6) 53. c5 $18 {[%emt 0:00:05]} Bc7 {[%emt 0:00:01]} 54. Bxc7 {[%emt 0:00:02]} Rxc7 {[%emt 0:00:01][%mdl 4096] Endgame KRB-KRN} 55. Rh6 {[%emt 0:00:01]} Rf7 {[%emt 0:00:01]} 56. Bh5 $1 {[%emt 0:00:01]} Rf8 {[%emt 0:00:00]} 57. Rh7 {[%emt 0:00:01] Prevents Ne7.} Kb8 {[%emt 0:00:14]} 58. Bf7 {[%emt 0:00:00]} e5 {[%emt 0:00:02]} 59. Be6 {[%emt 0:00:01]} exd4+ {[%emt 0:00:07]} 60. Kxd4 {[%emt 0:00:12][%cal Oe6d7]} Rd8+ 61. Kc3 {[%emt 0:00:00]} ({White should try} 61. Kc4 $1 $18) 61... Re8 $16 {[%emt 0:00:02]} 62. Bxf5 {[%emt 0:00:00] White has more active pieces.} Na7 $2 {[%emt 0:00:01]} (62... Re5 $16 {keeps fighting.} 63. Bd3 Rxc5+ 64. Kd2 Rd5) 63. Bd3 {[%emt 0:00:02]} Re5 {[%emt 0:00:02]} 64. Bc4 {[%emt 0:00:03] Black must now prevent a4.} Rxc5 {[%emt 0:00:02]} 65. Kd2 {[%emt 0:00:01]} (65. Kd4 $16 Rg5 66. Rf7) 65... Rg5 {[%emt 0:00:02]} ({Better is} 65... Nc8 $14) 66. Rf7 {[%emt 0:00:01]} Rg6 {[%emt 0:00:02]} 67. Bd3 {[%emt 0:00:02]} Rh6 {[%emt 0:00:01]} 68. Ke3 {[%emt 0:00:01]} Nc8 {[%emt 0:00:02]} 69. Kf4 {[%emt 0:00:04]} Nd6 {[%emt 0:00:01]} 70. Rd7 {[%emt 0:00:01]} Nc8 {[%emt 0:00:07]} 71. Kf5 {[%emt 0:00:04]} (71. g4 $16) 71... Nb6 {[%emt 0:00:02]} (71... Rh2 $11) 72. Rf7 {[%emt 0:00:01]} (72. Re7 $14) 72... Nd5 $2 {[%emt 0:00:01] [#]} (72... Rh2 $1 $11) 73. Bc4 $1 $18 {[%emt 0:00:01]} Rh2 {[%emt 0:00:02] [#]} 74. f4 $1 {[%emt 0:00:03]} Ne3+ {[%emt 0:00:01]} 75. Kxf6 {[%emt 0:00:01] Re7 is the strong threat.} Rxa2 {[%emt 0:00:02]} 76. Be6 {[%emt 0:00:01] Threatens to win with g4.} Rg2 {[%emt 0:00:01]} 77. Rg7 {[%emt 0:00:02] Hoping for g4.} b5 {[%emt 0:00:01]} (77... c5 {might work better.} 78. g4 c4) 78. f5 $2 {[%emt 0:00:01]} ({White has to play} 78. g4 $18) 78... a4 $14 {[%emt 0:00:03]} 79. bxa4 {[%emt 0:00:01]} bxa4 {[%emt 0:00:01]} 80. Ke5 {[%emt 0:00:03]} Nd5 $2 {[%emt 0:00:04][%mdl 8192] Dodges f6} 81. Bxd5 {[%emt 0:00:04][%mdl 64] Remove Defender. White mates.} cxd5 {[%emt 0:00:01]} 82. f6 {[%emt 0:00:01][%cal Bf5f6,Bf6f7][%mdl 32]} Re2+ {[%emt 0:00:06]} 83. Kd6 {[%emt 0:00:02]} Rf2 {[%emt 0:00:02]} 84. f7 {[%emt 0:00:01] Weighted Error Value: White=0.09 (flawless) /Black=0.13 (very precise)} ({And not} 84. Kxd5 Rxf6 85. Kc4 Rf3 $11) 1-0

[Event "Che Chess Festival Blitz 2023"]
[Site "Thiruvananthapuram"]
[Date "2023.11.20"]
[Round "5.1"]
[White "Nihal Sarin"]
[Black "Praggnanandhaa R"]
[Result "1-0"]
[ECO "A13"]
[WhiteElo "2692"]
[BlackElo "2741"]
[Annotator "TA"]
[PlyCount "73"]
[EventDate "2023.11.20"]
[EventType "blitz"]
[EventCountry "IND"]
[SourceTitle "playchess.com"]
[Source "ChessBase"]
[SourceQuality "1"]
[TimeControl "180+2"]

{[%evp 9,73,10,28,0,6,-14,-12,-12,-15,-18,-3,-20,-19,-27,0,-5,6,0,0,0,3,4,26,-17,0,0,0,0,0,0,6,15,21,0,0,0,0,-17,0,0,0,0,0,0,0,0,0,0,0,0,16,0,22,16,142,143,143,149,138,55,47,34,92,6,10,9]} 1. Nf3 {[%emt 0:00:03]} Nf6 {[%emt 0:00:01]} 2. c4 {[%emt 0:00:02]} e6 {[%emt 0:00:07]} 3. g3 {[%emt 0:00:02]} d5 {[%emt 0:00:01]} 4. Bg2 {[%emt 0:00:01]} d4 {[%emt 0:00:08]} 5. d3 {[%emt 0:00:03]} Bb4+ {[%emt 0:00:01]} 6. Nbd2 {[%emt 0:00:02] next Qa4+ is good for White. A13: English Opening: 1...e6.} a5 {[%emt 0:00:02]} 7. O-O {[%emt 0:00:03]} Nc6 {[%emt 0:00:01]} 8. Ne1 {[%emt 0:00:29]} O-O {[%emt 0:00:08]} 9. Nc2 {[%emt 0:00:01]} Be7 {[%emt 0:00:02]} 10. b3 {[%emt 0:00:05][%cal Bb2b3,Bb3b4,Bb4b5][%mdl 32]} e5 {[%emt 0:00:13]} 11. a3 {[%emt 0:00:01]} Bf5 {[%emt 0:00:20]} 12. Rb1 {[%emt 0:00:02] [#]} Qc8 $146 {[%emt 0:00:02]} ({Predecessor:} 12... Qd7 13. b4 axb4 14. axb4 Bh3 15. b5 Bxg2 16. Kxg2 Nd8 17. Nf3 Bd6 18. Bg5 Ne8 19. Bxd8 Qxd8 {½-½ Abdusattorov,N (2716)-Erigaisi,A (2712) Tata Steel India blitz 2023 (2)}) 13. Re1 {[%emt 0:00:06]} Re8 {[%emt 0:00:07]} 14. b4 {[%emt 0:00:02]} Bf8 {[%emt 0:00:03]} 15. b5 {[%emt 0:00:17]} Nb8 {[%emt 0:00:07]} 16. a4 {[%emt 0:00:05]} Nbd7 {[%emt 0:00:08]} 17. Nb3 {[%emt 0:00:02]} Nc5 {[%emt 0:00:11]} 18. Nxc5 {[%emt 0:00:03]} Bxc5 {[%emt 0:00:02]} 19. Na1 {[%emt 0:00:19]} e4 {[%emt 0:00:34] [#] ...exd3 is the strong threat.} 20. Nb3 {[%emt 0:00:04]} Bb4 {[%emt 0:00:05] And now ...exd3 would win.} 21. Rf1 {[%emt 0:00:17]} (21. Bd2 {seems wilder.} exd3 22. exd3 Bxd3 23. Rxe8+ Qxe8 24. Bxb7 Bxb1 25. Bc6) 21... exd3 {[%emt 0:00:05]} 22. exd3 {[%emt 0:00:02]} Bg4 {[%emt 0:00:01]} 23. Bf3 {[%emt 0:00:08]} Bh3 {[%emt 0:00:11]} (23... Bc3 $5 {[%cal Rc8f5]}) 24. Bg2 {[%emt 0:00:10]} c5 {[%emt 0:00:03]} 25. bxc6 {[%emt 0:00:55]} Bxg2 {[%emt 0:00:03]} 26. Kxg2 {[%emt 0:00:01][%cal Ob3a5]} Qxc6+ {[%emt 0:00:08]} ({Don't play} 26... bxc6 27. Nxd4 c5 28. Nb5 $14 (28. Nf3 Nd7 $11)) 27. Qf3 {[%emt 0:00:01]} Qxf3+ {[%emt 0:00:37]} 28. Kxf3 {[%emt 0:00:02][%cal Of1d1]} Nd7 {[%emt 0:00:01]} 29. Rd1 {[%emt 0:00:06]} Bc3 {[%emt 0:00:17]} 30. Bb2 {[%emt 0:00:17]} Ra6 {[%emt 0:00:06] [#] aiming for ...Rf6+.} 31. Nxd4 {[%emt 0:00:05]} Rf6+ {[%emt 0:00:06]} (31... Bxb2 $1 $11 {keeps the balance.} 32. Rxb2 Rd6) 32. Kg2 $16 {[%emt 0:00:01]} Bxb2 {[%emt 0:00:01]} 33. Rxb2 {[%emt 0:00:01]} Nc5 {[%emt 0:00:00]} 34. Rb5 {[%emt 0:00:05]} (34. Nb5 $16) 34... b6 $14 {[%emt 0:00:01]} 35. Nf3 {[%emt 0:00:06]} Re2 {[%emt 0:00:05]} ({Black should play} 35... Nxa4 $14 36. Rc1 Nc5) 36. Re1 {[%emt 0:00:02]} (36. Rd2 $16 Rxd2 37. Nxd2) 36... Rxe1 $11 {[%emt 0:00:02]} 37. Nxe1 {[%emt 0:00:01][%mdl 32768] Weighted Error Value: White=0.13 (very precise) /Black=0.16 (very precise) . Loss on time!?} 1-0

[Event "Che Chess Festival Blitz 2023"]
[Site "Thiruvananthapuram"]
[Date "2023.11.20"]
[Round "6.1"]
[White "Praggnanandhaa R"]
[Black "Nihal Sarin"]
[Result "1/2-1/2"]
[ECO "B91"]
[WhiteElo "2741"]
[BlackElo "2692"]
[Annotator "TA"]
[PlyCount "94"]
[EventDate "2023.11.20"]
[EventType "blitz"]
[EventCountry "IND"]
[SourceTitle "playchess.com"]
[Source "ChessBase"]
[SourceQuality "1"]
[TimeControl "180+2"]

{[%evp 17,94,0,10,10,10,16,14,-14,0,-19,-12,-31,28,21,18,7,0,0,19,0,14,14,27,0,0,-22,0,0,0,0,0,-18,-14,-12,0,-39,-17,-13,-7,-17,-22,-34,-24,-52,0,0,0,0,0,0,0,0,0,0,0,0,0,0,0,0,0,0,0,0,0,0,0,0,0,0,0,0,0,0,0,0,0,0,0]} 1. e4 {[%emt 0:00:01]} c5 {[%emt 0:00:03]} 2. Nf3 {[%emt 0:00:02]} d6 {[%emt 0:00:02]} 3. Nc3 {[%emt 0:00:15]} Nf6 {[%emt 0:00:03]} 4. d4 {[%emt 0:00:09]} cxd4 {[%emt 0:00:02]} 5. Nxd4 {[%emt 0:00:03]} a6 {[%emt 0:00:02]} 6. g3 {[%emt 0:00:07]} e5 {[%emt 0:00:03]} 7. Nde2 {[%emt 0:00:01]} Be7 {[%emt 0:00:05]} 8. Bg2 {[%emt 0:00:01]} O-O {[%emt 0:00:02]} 9. O-O {[%emt 0:00:02]} b5 {[%emt 0:00:09]} 10. Nd5 {[%emt 0:00:01] B91: Sicilian Najdorf: 6 g3.} Nbd7 {[%emt 0:00:10]} 11. Nec3 {[%emt 0:00:01]} Bb7 {[%emt 0:00:04]} 12. a4 {[%emt 0:00:02]} Bxd5 {[%emt 0:00:15]} (12... Nxd5 {keeps more tension.} 13. Nxd5 Bxd5 14. Qxd5 Nb6) 13. Nxd5 {[%emt 0:00:02]} Nxd5 {[%emt 0:00:01]} 14. exd5 {[%emt 0:00:01] [#]} Qc7 $146 {[%emt 0:00:20]} ({Black should play} 14... b4 $15) ({Predecessor:} 14... b4 15. Bd2 a5 16. c3 bxc3 17. Bxc3 Qb6 18. Qc2 Nc5 19. Rfb1 Nb3 20. Ra3 Nd4 21. Bxd4 Qxd4 {½-½ Kryvoruchko,Y (2701)-Sadzikowski,D (2541) BL2-Sued 1617 2016 (1.1)}) 15. axb5 $11 {[%emt 0:00:12]} axb5 {[%emt 0:00:01]} 16. Rxa8 {[%emt 0:00:01]} Rxa8 {[%emt 0:00:02]} 17. Qd3 {[%emt 0:00:01]} Qb7 {[%emt 0:00:24]} 18. Bd2 {[%emt 0:00:07]} Nc5 {[%emt 0:00:28]} 19. Qe2 {[%emt 0:00:31]} b4 {[%emt 0:00:08]} 20. Qc4 {[%emt 0:00:20]} b3 {[%emt 0:00:02]} 21. cxb3 {[%emt 0:00:09]} Nxb3 {[%emt 0:00:03]} (21... Qxb3 {simplifies} 22. Qxb3 Nxb3 23. Bc3 Bd8) 22. Bc3 {[%emt 0:00:05][%cal Oc3e5]} Rc8 {[%emt 0:00:02]} 23. Qg4 {[%emt 0:00:25][%cal Oc3e5]} g6 {[%emt 0:00:03]} 24. h4 {[%emt 0:00:18]} h5 {[%emt 0:00:07]} 25. Qe2 {[%emt 0:00:05]} Bf6 {[%emt 0:00:08]} 26. Kh2 {[%emt 0:00:09]} Kg7 {[%emt 0:00:02]} 27. Qe3 {[%emt 0:00:13]} Nd4 {[%emt 0:00:05]} 28. Qd3 {[%emt 0:00:03]} Ra8 {[%emt 0:00:08]} 29. f4 {[%emt 0:00:05] [#] And now fxe5 would win.} Qb6 {[%emt 0:00:06]} 30. Be4 {[%emt 0:00:09]} exf4 {[%emt 0:00:09]} (30... Nb5 $15 31. fxe5 Bxe5 32. Bxe5+ dxe5) 31. Rxf4 {[%emt 0:00:07] The position is equal.} Be5 {[%emt 0:00:02]} 32. Bxg6 {[%emt 0:00:04]} fxg6 {[%emt 0:00:14]} 33. Bxd4 {[%emt 0:00:01]} Bxd4 {[%emt 0:00:18]} 34. Qxd4+ {[%emt 0:00:01]} Qxd4 {[%emt 0:00:01]} 35. Rxd4 {[%emt 0:00:01][%mdl 4096] Endgame KR-KR} Ra2 {[%emt 0:00:03]} 36. Rd2 {[%emt 0:00:04]} Kf6 {[%emt 0:00:01]} 37. Kg2 {[%emt 0:00:01]} Ke5 {[%emt 0:00:03]} 38. Kf3 {[%emt 0:00:01]} Ra4 {[%emt 0:00:02]} 39. Rd3 {[%emt 0:00:08]} Rb4 {[%emt 0:00:05]} 40. b3 {[%emt 0:00:01]} Rb8 {[%emt 0:00:07]} 41. Ke3 {[%emt 0:00:02]} Rb7 {[%emt 0:00:02]} 42. Kd2 {[%emt 0:00:02]} Ke4 {[%emt 0:00:02]} 43. Kc2 {[%emt 0:00:10]} Rc7+ {[%emt 0:00:01]} 44. Kd2 {[%emt 0:00:02]} Rb7 {[%emt 0:00:00]} 45. Kc2 {[%emt 0:00:03]} Rc7+ {[%emt 0:00:01]} 46. Rc3 {[%emt 0:00:01]} Rb7 {[%emt 0:00:01]} 47. Rd3 {[%emt 0:00:02]} Rc7+ {[%emt 0:00:04] Weighted Error Value: White=0.07 (flawless) /Black=0.09 (flawless)} 1/2-1/2

[Event "Che Chess Festival Blitz 2023"]
[Site "Thiruvananthapuram"]
[Date "2023.11.20"]
[Round "7.1"]
[White "Nihal Sarin"]
[Black "Praggnanandhaa R"]
[Result "0-1"]
[ECO "C47"]
[WhiteElo "2692"]
[BlackElo "2741"]
[Annotator "TA"]
[PlyCount "58"]
[EventDate "2023.11.20"]
[EventType "blitz"]
[EventCountry "IND"]
[SourceTitle "playchess.com"]
[Source "ChessBase"]
[SourceQuality "1"]
[TimeControl "180+2"]

{[%evp 17,58,-7,0,0,0,0,0,-19,-19,-22,-15,-16,-19,-29,-28,-42,-20,-58,-35,-44,0,0,0,-1,0,-45,-31,-45,33,36,38,38,67,64,96,81,102,21,25,18,23,13,54]} 1. e4 {[%emt 0:00:03]} e5 {[%emt 0:00:00]} 2. Nf3 {[%emt 0:00:01]} Nc6 {[%emt 0:00:01]} 3. Nc3 {[%emt 0:00:01]} Nf6 {[%emt 0:00:01]} 4. d4 {[%emt 0:00:01]} exd4 {[%emt 0:00:01]} 5. Nxd4 {[%emt 0:00:02]} Bb4 {[%emt 0:00:01]} 6. Nxc6 {[%emt 0:00:02]} bxc6 {[%emt 0:00:01]} 7. Bd3 {[%emt 0:00:01]} O-O {[%emt 0:00:02]} 8. O-O {[%emt 0:00:02]} d5 {[%emt 0:00:00]} 9. exd5 {[%emt 0:00:02]} cxd5 {[%emt 0:00:02]} 10. h3 {[%emt 0:00:04] is recently more successful than 10.Bg5. C47: Scotch Four Knights and Four Knights with 4 g3.} c6 {[%emt 0:00:02]} 11. Qf3 {[%emt 0:00:03]} Re8 {[%emt 0:00:01]} 12. Ne2 {[%emt 0:00:06]} Nd7 {[%emt 0:00:20]} 13. Bf4 {[%emt 0:00:32] [#]} Ne5 $146 {[%emt 0:00:33]} ({Predecessor:} 13... Qf6 14. c3 Bd6 15. Bxd6 Qxd6 16. Nd4 Ne5 17. Qg3 Bd7 18. Bf5 Bxf5 19. Qxg7+ Kxg7 20. Nxf5+ {½-½ Hector,J (2466)-Mikkelsen,N (2480) Copenhagen CC GM 2023 (2)}) 14. Bxe5 {[%emt 0:00:54]} Rxe5 {[%emt 0:00:02]} 15. Rad1 {[%emt 0:00:05]} Bc5 {[%emt 0:00:47]} 16. c3 {[%emt 0:00:05][%cal Bc2c3,Bc3c4][%mdl 32]} Bd7 {[%emt 0:00:08]} 17. Rd2 {[%emt 0:00:07]} a5 {[%emt 0:00:07]} 18. Rfd1 {[%emt 0:00:20]} Qb6 {[%emt 0:00:21]} 19. c4 {[%emt 0:00:20]} Rae8 {[%emt 0:00:06][%cal Oe5e3]} 20. Nc3 {[%emt 0:00:16][%cal Rc4d5]} Re1+ {[%emt 0:00:18]} 21. Rxe1 {[%emt 0:00:07][%mdl 64] [#] Remove Defender} Rxe1+ {[%emt 0:00:01]} 22. Kh2 {[%emt 0:00:10] White is weak on the dark squares} Be6 {[%emt 0:00:29]} (22... d4 $15 23. Ne4 Qc7+ 24. g3 Be7) 23. cxd5 $14 {[%emt 0:00:03]} cxd5 {[%emt 0:00:01]} 24. Nxd5 {[%emt 0:00:10]} Qb8+ {[%emt 0:00:13]} 25. g3 {[%emt 0:00:06]} h6 {[%emt 0:00:08]} 26. a3 {[%emt 0:00:04]} Bd6 {[%emt 0:00:03]} 27. Nf4 {[%emt 0:00:03]} (27. Bf5 $16) 27... Bxf4 $11 {[%emt 0:00:03]} 28. Qxf4 {[%emt 0:00:01]} Qa8 {[%emt 0:00:02][%csl Ga8][%cal Re1h1] [#]} 29. f3 {[%emt 0:00:04] And now Qc7 would win.} Qa7 {[%emt 0:00:01][%mdl 32768] Against Qc7.   Weighted Error Value: White=0.14 (very precise) /Black=0.17 (very precise) . Loss on time!?} 0-1

[Event "Che Chess Festival Blitz 2023"]
[Site "Thiruvananthapuram"]
[Date "2023.11.20"]
[Round "8.1"]
[White "Praggnanandhaa R"]
[Black "Nihal Sarin"]
[Result "1-0"]
[ECO "B13"]
[WhiteElo "2741"]
[BlackElo "2692"]
[Annotator "ChessBase"]
[PlyCount "89"]
[EventDate "2023.11.20"]
[EventType "blitz"]
[EventCountry "IND"]
[SourceTitle "playchess.com"]
[Source "ChessBase"]
[SourceQuality "1"]
[TimeControl "180+2"]

1. e4 {[%emt 0:00:01]} c6 {[%emt 0:00:02]} 2. d4 {[%emt 0:00:05]} d5 {[%emt 0:00:02]} 3. exd5 {[%emt 0:00:02]} cxd5 {[%emt 0:00:01]} 4. Bd3 {[%emt 0:00:01]} Nc6 {[%emt 0:00:02]} 5. c3 {[%emt 0:00:01]} Nf6 {[%emt 0:00:01]} 6. Nf3 {[%emt 0:00:01]} Bg4 {[%emt 0:00:13]} 7. h3 {[%emt 0:00:01]} Bh5 {[%emt 0:00:01]} 8. Bf4 {[%emt 0:00:02]} e6 {[%emt 0:00:02]} 9. Nbd2 {[%emt 0:00:01]} Be7 {[%emt 0:00:02]} 10. O-O {[%emt 0:00:02]} O-O {[%emt 0:00:01]} 11. Re1 {[%emt 0:00:01]} Bd6 {[%emt 0:00:14]} 12. Bxd6 {[%emt 0:00:11]} Qxd6 {[%emt 0:00:02]} 13. a4 {[%emt 0:00:01]} Rab8 {[%emt 0:00:01]} 14. a5 {[%emt 0:00:08]} Qc7 {[%emt 0:00:02]} 15. Qa4 {[%emt 0:00:02]} Bg6 {[%emt 0:00:05]} 16. Bxg6 {[%emt 0:00:11]} hxg6 {[%emt 0:00:01]} 17. Ne5 {[%emt 0:00:02]} Nd7 {[%emt 0:00:16]} 18. Nd3 {[%emt 0:00:09]} Rfc8 {[%emt 0:00:06]} 19. Qa3 {[%emt 0:00:21]} Nf6 {[%emt 0:00:14]} 20. Nc5 {[%emt 0:00:49]} Ne7 {[%emt 0:00:06]} 21. Nf3 {[%emt 0:00:05]} Nf5 {[%emt 0:00:02]} 22. Ne5 {[%emt 0:00:02]} Nd6 {[%emt 0:00:01]} 23. Qa4 {[%emt 0:00:16]} Nfe4 {[%emt 0:00:10]} 24. Nxe4 {[%emt 0:00:23]} Nxe4 {[%emt 0:00:02]} 25. Qd7 {[%emt 0:00:02]} Qxd7 {[%emt 0:00:16]} 26. Nxd7 {[%emt 0:00:01]} Ra8 {[%emt 0:00:01]} 27. h4 {[%emt 0:00:08]} Rc7 {[%emt 0:00:06]} 28. Ne5 {[%emt 0:00:02]} Nd6 {[%emt 0:00:03]} 29. Ra4 {[%emt 0:00:07]} Rac8 {[%emt 0:00:07]} 30. g3 {[%emt 0:00:03]} Kf8 {[%emt 0:00:15]} 31. Kg2 {[%emt 0:00:01]} Ke7 {[%emt 0:00:01]} 32. Rb4 {[%emt 0:00:03]} Kf6 {[%emt 0:00:09]} 33. Re3 {[%emt 0:00:05]} Ke7 {[%emt 0:00:04]} 34. Re1 {[%emt 0:00:03]} Ne4 {[%emt 0:00:15]} 35. Nd3 {[%emt 0:00:06]} Kd6 {[%emt 0:00:13]} 36. Ra1 {[%emt 0:00:09]} Nf6 {[%emt 0:00:04]} 37. Ra3 {[%emt 0:00:02]} Nd7 {[%emt 0:00:03]} 38. Rab3 {[%emt 0:00:02]} Rb8 {[%emt 0:00:07]} 39. Kf3 {[%emt 0:00:02]} f6 {[%emt 0:00:05]} 40. Nf4 {[%emt 0:00:02]} Nf8 {[%emt 0:00:02]} 41. Rb5 {[%emt 0:00:04]} Rd7 {[%emt 0:00:03]} 42. Nd3 {[%emt 0:00:05]} Rc7 {[%emt 0:00:09]} 43. Nc5 {[%emt 0:00:03]} Kc6 {[%emt 0:00:01]} 44. Na6 {[%emt 0:00:02]} bxa6 {[%emt 0:00:09]} 45. Rc5+ {[%emt 0:00:06]} 1-0